bitfinex-derivatives/quotes_SOLF0:USTF0_20250901
["timestamp","ask_amount","ask_price","bid_price","bid_amount"]
[1756740881429,0.03709703,198.99,198.92,7.45]
[1756740882929,0.03709703,198.99,198.94,7.45]
[1756740883129,0.03709703,198.99,198.94,4.53081627]
[1756740883331,0.03709703,198.99,198.95,7.45]
[1756740883526,0.03709703,198.99,198.91,8.71907773]
[1756740883731,0.03709703,198.99,198.92,9.28032068]
[1756740883931,0.03709703,198.99,198.93,1.83032068]
[1756740884136,0.03709703,198.99,198.92,7.45]
[1756740884335,0.03709703,198.99,198.93,1.83137932]
[1756740884534,0.03709703,198.99,198.92,7.45]
[1756740884733,0.03709703,198.99,198.93,1.83136745]
[1756740884931,0.03709703,198.99,198.92,7.45]
[1756740885133,0.03709703,198.99,198.93,1.83136724]
[1756740885432,0.03709703,198.99,198.92,7.45]
[1756740885631,0.03709703,198.99,198.93,1.83148147]
[1756740885834,0.03709703,198.99,198.92,7.45]
[1756740886034,0.03709703,198.99,198.93,1.83148147]
[1756740886236,0.03709703,198.99,198.92,7.45]
[1756740886434,0.03709703,198.99,198.93,1.83159227]
[1756740886630,0.03709703,198.99,198.92,7.45]
[1756740886836,0.03709703,198.99,198.93,1.83161446]
[1756740887136,0.03709703,198.99,198.92,7.45]
[1756740887337,0.03709703,198.99,198.93,1.8317939]
[1756740887530,0.03709703,198.99,198.92,7.45]
[1756740887730,0.03709703,198.99,198.93,1.83180557]
[1756740887930,0.03709703,198.99,198.92,7.45]
[1756740888126,0.03709703,198.99,198.93,1.83181703]
[1756740888336,6.67709703,198.99,198.92,7.45]
[1756740891034,69.16,198.98,198.87,4.18826146]
[1756740891237,6.64,198.97,198.85,7.45]
[1756740891439,6.64,198.97,198.86,1.83205876]
[1756740891637,6.64,198.97,198.87,1.83205876]
[1756740891932,0.03281916,198.93,198.89,7.45]
[1756740892536,0.03281916,198.93,198.9,1.83175992]
[1756740892737,0.03281916,198.93,198.86,11.98081627]
[1756740892938,0.03281916,198.93,198.87,9.28172407]
[1756740893137,0.03281916,198.93,198.89,7.45]
[1756740893339,0.03281916,198.93,198.9,1.83172407]
[1756740893535,0.03281916,198.93,198.87,7.45]
[1756740893838,0.03281916,198.93,198.88,1.83159461]
[1756740894037,0.03281916,198.93,198.9,7.45]
[1756740894238,0.03281916,198.93,198.87,7.45]
[1756740894442,0.03281916,198.93,198.89,7.45]
[1756740894734,0.03281916,198.93,198.91,7.45]
[1756740894928,0.03281916,198.93,198.92,9.28150898]
[1756740895532,6.64,199.01,198.92,9.28150898]
[1756740895737,6.64,199.01,198.93,1.83150898]
[1756740896038,6.64,199.01,198.94,1.83150898]
[1756740896240,6.64,199.01,198.95,1.83150898]
[1756740896538,319.0,199.18,198.96,9.28150898]
[1756740896539,103.39,199.06,198.96,9.28150898]
[1756740896735,103.39,199.06,198.97,1.83150898]
[1756740896944,103.39,199.06,198.96,7.45]
[1756740897138,103.39,199.06,198.97,1.83174639]
[1756740897338,103.39,199.06,198.96,7.45]
[1756740897537,103.39,199.06,198.97,1.83224527]
[1756740897738,103.39,199.06,198.96,7.45]
[1756740897932,103.39,199.06,198.97,1.83224527]
[1756740898137,103.39,199.06,198.96,7.45]
[1756740898337,103.39,199.06,198.97,1.83235568]
[1756740898641,103.39,199.06,198.99,0.03286917]
[1756740899238,134.69,199.06,198.99,0.03286917]
[1756740900231,6.67,199.06,198.99,0.03286917]
[1756740900538,337.78,199.08,199.01,7.45]
[1756740900739,337.78,199.08,199.02,1.83456213]
[1756740900939,337.78,199.08,199.03,9.28456213]
[1756740901142,6.65,199.14,199.04,9.28456213]
[1756740901339,134.59,199.14,199.05,1.83456213]
[1756740901536,134.59,199.14,199.06,1.83445095]
[1756740901734,134.59,199.14,199.04,7.45]
[1756740902234,134.59,199.14,199.07,0.03198761]
[1756740903343,134.51,199.14,199.07,0.03198761]
[1756740908139,134.51,199.14,199.07,7.84198761]
[1756740908641,6.65,199.14,199.07,7.84198761]
[1756740908838,6.66,199.19,199.07,7.84198761]
[1756740909038,6.66,199.19,199.1,7.81]
[1756740909235,134.34,199.19,199.1,7.81]
[1756740909846,337.8,199.2,199.1,7.81]
[1756740910142,127.64,199.22,199.12,4.53081627]
[1756740910351,6.66,199.23,199.12,4.53081627]
[1756740910352,6.66,199.23,199.13,7.81]
[1756740912850,6.66,199.2,199.07,7.81]
[1756740913055,6.66,199.2,199.02,19.46826146]
[1756740913056,6.66,199.16,199.02,7.81]
[1756740913353,6.66,199.14,199.02,7.81]
[1756740914859,11.19081627,199.14,199.02,7.81]
[1756740915241,11.19081627,199.14,198.98,7.81]
[1756740915242,6.66,199.13,198.98,7.81]
[1756740915545,6.66,199.1,198.98,7.81]
[1756740917247,6.66,199.1,198.95,7.81]
[1756740917551,6.66,199.07,198.95,7.81]
[1756740917852,6.66,199.05,198.95,7.81]
[1756740918258,11.19081627,199.05,198.9,7.81]
[1756740919458,35.56,199.04,198.9,7.81]
[1756740920056,6.66,199.03,198.9,7.81]
[1756740921149,4.53081627,199.02,198.9,7.81]
[1756740921450,6.66,199.01,198.9,7.81]
[1756740924051,6.66,198.98,198.85,7.81]
[1756740925853,6.66,198.95,198.85,7.81]
[1756740926050,6.66,198.93,198.85,7.81]
[1756740926255,11.19081627,198.93,198.79,7.81]
[1756740926856,58.44,198.92,198.79,7.81]
[1756740927055,6.66,198.91,198.79,7.81]
[1756740928360,6.66,198.89,198.79,7.81]
[1756740928960,17.78,198.89,198.79,7.81]
[1756740929160,28.34,198.89,198.79,7.81]
[1756740929959,6.66,198.88,198.73,7.81]
[1756740930356,4.53081627,198.87,198.73,7.81]
[1756740930660,6.66,198.86,198.73,7.81]
[1756740932061,10.82,198.85,198.73,7.81]
[1756740932264,6.66,198.84,198.73,7.81]
[1756740937055,49.74,198.84,198.73,7.81]
[1756740937258,6.66,198.84,198.73,7.81]
[1756740937465,90.66,198.84,198.73,7.81]
[1756740938370,95.19081627,198.84,198.73,7.81]
[1756740939168,127.16,198.83,198.73,7.81]
[1756740939374,6.69,198.82,198.73,7.81]
[1756740940278,52.91,198.82,198.73,7.81]
[1756740940678,96.81,198.82,198.73,7.81]
[1756740941481,6.69,198.82,198.73,7.81]
[1756740941873,52.39,198.82,198.73,7.81]
[1756740942278,6.69,198.82,198.73,7.81]
[1756740942477,95.79,198.82,198.73,7.81]
[1756740943079,95.79,198.82,198.68,7.76]
[1756740943080,6.69,198.8,198.68,7.76]
[1756740944378,49.01,198.8,198.68,7.76]
[1756740944979,89.13,198.8,198.68,7.76]
[1756740946076,6.69,198.8,198.68,7.76]
[1756740946481,43.1,198.79,198.68,7.76]
[1756740946681,6.69,198.8,198.68,7.76]
[1756740946876,72.65,198.8,198.68,7.76]
[1756740947471,6.69,198.8,198.68,7.76]
[1756740948073,6.69,198.8,198.69,2.83600476]
[1756740949586,6.69,198.8,198.7,7.76]
[1756740949878,2.83600476,198.82,198.72,2.83600476]
[1756740950185,2.83600476,198.82,198.73,7.76]
[1756740951074,6.69,198.81,198.73,7.76]
[1756740952087,6.69,198.87,198.76,7.76]
[1756740952282,6.69,198.87,198.77,7.76]
[1756740952480,6.69,198.87,198.79,2.83600476]
[1756740952680,337.9,198.9,198.8,7.76]
[1756740953081,337.9,198.9,198.8,10.59600476]
[1756740953678,337.9,198.9,198.8,7.76]
[1756740953882,337.9,198.9,198.8,10.59600476]
[1756740954085,337.9,198.9,198.8,7.76]
[1756740954685,337.9,198.9,198.83,0.032107]
[1756740956084,337.9,198.9,198.83,7.792107]
[1756740956586,126.96,198.93,198.83,0.032107]
[1756740956785,6.69,198.87,198.83,0.032107]
[1756740956987,6.68,198.85,198.74,7.76]
[1756740958492,0.03424,198.81,198.74,7.76]
[1756740960186,0.03424,198.81,198.77,7.76]
[1756740960588,0.58,198.88,198.77,7.76]
[1756740960788,6.65,198.87,198.77,7.76]
[1756740961388,0.03537036,198.84,198.77,7.76]
[1756740962190,0.03537036,198.84,198.79,7.76]
[1756740962396,0.03537036,198.84,198.8,1.82349155]
[1756740962594,6.65,198.92,198.82,7.76]
[1756740962996,0.03342664,198.84,198.81,7.76]
[1756740963198,0.03342664,198.84,198.83,7.76]
[1756740963394,6.65,198.92,198.83,9.58338657]
[1756740963693,0.03317431,198.85,198.83,7.76]
[1756740963893,6.65,198.89,198.81,7.76]
[1756740964095,4.53267755,198.88,198.77,4.19657824]
[1756740964294,0.03359103,198.86,198.78,1.83350991]
[1756740964493,0.03359103,198.86,198.79,9.59350991]
[1756740964699,0.03359103,198.86,198.8,1.83364342]
[1756740964998,0.03359103,198.86,198.79,7.76]
[1756740965190,0.03359103,198.86,198.8,1.83363887]
[1756740965395,0.03359103,198.86,198.81,1.83475314]
[1756740965595,0.03359103,198.86,198.8,4.19657824]
[1756740965791,0.03359103,198.86,198.81,1.83475219]
[1756740965995,0.03359103,198.86,198.81,7.76]
[1756740966191,0.03359103,198.86,198.83,7.76]
[1756740966494,0.03359103,198.86,198.81,7.76]
[1756740966691,0.03359103,198.86,198.83,7.76]
[1756740966890,0.03359103,198.86,198.8,4.19657824]
[1756740967091,0.03359103,198.86,198.81,6.03273206]
[1756740967291,0.03359103,198.86,198.83,7.76]
[1756740967491,0.03359103,198.86,198.85,7.76]
[1756740967697,0.03359103,198.86,198.85,9.59700507]
[1756740968001,14.59,198.95,198.85,9.59700507]
[1756740968190,14.59,198.95,198.86,6.04753083]
[1756740968396,14.59,198.95,198.87,1.83700507]
[1756740968595,7.94,198.95,198.88,9.88700507]
[1756740968893,6.68,198.99,198.89,1.83700507]
[1756740969093,6.68,198.99,198.9,1.83714188]
[1756740969296,6.68,198.99,198.88,12.26052576]
[1756740969502,6.68,198.99,198.89,1.83678895]
[1756740969799,6.68,198.99,198.92,0.03382897]
[1756740972004,466.58,199.02,198.92,0.03382897]
[1756740972005,338.08,199.02,198.92,0.03382897]
[1756740972505,6.68,199.01,198.92,0.03382897]
[1756740972893,6.68,198.99,198.92,0.03382897]
[1756740973696,4.53267755,198.95,198.84,4.21052576]
[1756740973900,68.2,198.94,198.82,4.21052576]
[1756740974099,4.53267755,198.92,198.83,1.8339749]
[1756740974302,4.53267755,198.92,198.8,12.26052576]
[1756740974303,6.64,198.91,198.8,12.26052576]
[1756740974497,6.64,198.91,198.81,1.83414012]
[1756740974800,6.64,198.91,198.82,1.83414012]
[1756740974998,0.03480411,198.88,198.8,8.05]
[1756740976305,0.03480411,198.88,198.81,1.83382393]
[1756740976495,0.03480411,198.88,198.82,1.83382393]
[1756740976699,0.03480411,198.88,198.8,8.05]
[1756740976899,0.03480411,198.88,198.82,8.05]
[1756740977102,0.03480411,198.88,198.83,1.83384384]
[1756740977308,0.03480411,198.88,198.84,8.05]
[1756740977606,0.03480411,198.88,198.81,8.05]
[1756740977907,0.03480411,198.88,198.82,1.83356887]
[1756740978207,0.03480411,198.88,198.81,8.05]
[1756740978405,0.03480411,198.88,198.82,1.83339196]
[1756740978610,0.03480411,198.88,198.81,8.05]
[1756740978802,0.03480411,198.88,198.82,1.83339154]
[1756740979105,0.03480411,198.88,198.81,8.05]
[1756740979400,0.03480411,198.88,198.83,8.05]
[1756740979605,0.03480411,198.88,198.85,8.05]
[1756740979805,50.56,198.94,198.87,8.05]
[1756740980606,6.68,199.0,198.87,8.05]
[1756740980805,96.38,199.0,198.87,8.05]
[1756740981302,6.68,199.0,198.92,0.03285048]
[1756740981504,134.92,199.0,198.92,0.03285048]
[1756740984413,6.68,198.98,198.92,0.03285048]
[1756740986605,134.82,198.98,198.92,0.03285048]
[1756740987210,6.68,198.98,198.92,0.03285048]
[1756740987608,128.12,199.0,198.92,0.03285048]
[1756740987914,128.12,199.0,198.93,8.05]
[1756740988305,15.06,199.15,198.93,8.05]
[1756740988306,4.53267755,199.1,198.93,4.5237]
[1756740988506,134.86,199.09,198.94,8.05]
[1756740989109,134.86,199.09,199.0,0.03430068]
[1756740989706,6.68,199.06,199.0,0.03430068]
[1756740992412,128.16,199.08,199.0,0.03430068]
[1756740992614,6.68,199.1,199.01,8.05]
[1756740993812,6.68,199.13,199.01,8.05]
[1756740994119,6.68,199.13,199.04,8.05]
[1756740994323,134.78,199.17,199.04,12.5711]
[1756740994507,134.78,199.17,199.07,0.03327543]
[1756740997318,134.78,199.17,199.07,8.08327543]
[1756740997721,134.78,199.17,199.07,12.61595298]
[1756740998121,134.78,199.17,199.08,7.75]
[1756741000622,134.78,199.17,199.07,0.03327543]
[1756741003532,134.78,199.17,199.08,12.28267755]
[1756741003732,6.68,199.17,199.08,12.28267755]
[1756741004829,6.68,199.17,199.08,16.80287755]
[1756741005031,6.68,199.17,199.08,7.75]
[1756741009726,6.68,199.17,199.07,0.03327543]
[1756741010429,6.67,199.15,199.07,0.03327543]
[1756741010828,6.67,199.15,199.03,2.82532136]
[1756741011633,6.67,199.15,199.07,0.03277159]
[1756741012430,2.82532136,199.13,199.07,0.03277159]
[1756741012636,6.67,199.12,199.07,0.03277159]
[1756741012838,6.67,199.12,199.01,7.75]
[1756741013029,6.67,199.12,199.03,2.82532136]
[1756741013234,6.67,199.12,199.04,7.75]
[1756741013434,6.67,199.12,199.06,0.03168089]
[1756741014329,2.82532136,199.17,199.07,7.75]
[1756741014330,6.67,199.17,199.07,7.75]
[1756741015333,6.67,199.17,199.07,12.2704]
[1756741015534,6.67,199.17,199.1,0.03355319]
[1756741016238,9.49532136,199.17,199.1,0.03355319]
[1756741016828,6.67,199.17,199.1,0.03355319]
[1756741017038,2.82532136,199.14,199.1,0.03355319]
[1756741018033,6.69,199.15,199.1,0.03355319]
[1756741019337,4.52289832,199.16,199.1,0.03355319]
[1756741019530,6.69,199.18,199.1,0.03355319]
[1756741019732,6.69,199.18,199.06,7.75]
[1756741020228,6.69,199.18,199.12,0.03436653]
[1756741024542,6.69,199.22,199.12,0.03436653]
[1756741028036,6.69,199.22,199.13,7.38]
[1756741028240,6.69,199.22,199.12,0.03436653]
[1756741028442,6.69,199.22,199.12,7.41436653]
[1756741028839,6.69,199.22,199.12,0.03436653]
[1756741030948,6.69,199.22,199.13,7.38]
[1756741032548,6.69,199.22,199.13,11.8991]
[1756741032749,6.69,199.22,199.13,7.38]
[1756741033143,6.69,199.22,199.13,11.59052576]
[1756741033846,6.69,199.22,199.13,7.38]
[1756741035339,6.69,199.22,199.12,0.03436653]
[1756741037846,6.68,199.19,199.12,0.03436653]
[1756741038049,6.68,199.17,199.12,0.03436653]
[1756741038249,6.68,199.17,199.08,4.21052576]
[1756741038449,6.68,199.17,199.09,1.84145226]
[1756741038750,6.68,199.17,199.07,4.21052576]
[1756741039251,6.68,199.17,199.1,0.03178522]
[1756741039751,2.82567034,199.15,199.1,0.03178522]
[1756741039944,6.68,199.14,199.1,0.03178522]
[1756741040445,2.82567034,199.15,199.1,0.03178522]
[1756741040651,6.68,199.14,199.1,0.03178522]
[1756741040852,2.82567034,199.12,199.1,0.03178522]
[1756741041049,6.68,199.11,199.1,0.03178522]
[1756741041448,7.18,199.11,199.1,0.03178522]
[1756741041846,6.68,199.11,199.1,0.03178522]
[1756741043744,7.18,199.11,199.02,4.21052576]
[1756741043949,6.65,199.11,199.01,7.38]
[1756741044547,9.47567034,199.09,198.98,7.0361961]
[1756741044745,9.47567034,199.09,198.99,1.84057714]
[1756741044948,9.47567034,199.09,199.0,9.22053747]
[1756741045147,9.47567034,199.09,199.01,1.84053747]
[1756741045350,9.47567034,199.09,199.0,7.38]
[1756741045847,0.03398517,199.06,199.0,7.38]
[1756741046654,0.03398517,199.06,199.01,7.38]
[1756741046953,0.03398517,199.06,199.0,7.0361961]
[1756741047152,0.03398517,199.06,199.01,1.83950374]
[1756741047450,0.03398517,199.06,199.0,7.0361961]
[1756741047646,0.03398517,199.06,199.01,8.87538378]
[1756741047851,0.03398517,199.06,199.03,7.38]
[1756741048253,0.03398517,199.06,199.01,2.82567034]
[1756741048454,0.03398517,199.06,199.02,7.38]
[1756741049358,0.03398517,199.06,199.05,7.38]
[1756741049754,6.65,199.17,199.06,7.38]
[1756741049956,6.65,199.17,199.09,7.38]
[1756741051156,54.07567034,199.21,199.11,0.03405146]
[1756741051354,6.65,199.21,199.11,0.03405146]
[1756741051656,52.81567034,199.21,199.11,0.03405146]
[1756741051964,49.99,199.21,199.11,0.03405146]
[1756741052459,6.65,199.21,199.11,7.41405146]
[1756741055661,11.16948557,199.21,199.11,0.03405146]
[1756741055861,6.65,199.17,199.11,0.03405146]
[1756741056257,6.65,199.17,199.07,7.38]
[1756741056661,6.65,199.17,199.12,0.03482157]
[1756741057066,6.65,199.15,199.03,11.59052576]
[1756741057460,4.51948557,199.18,199.13,0.03308926]
[1756741057659,82.79948557,199.18,199.08,7.38]
[1756741057967,6.64,199.17,199.08,7.38]
[1756741058167,6.64,199.17,199.14,0.03275634]
[1756741058366,82.79948557,199.18,199.14,0.03275634]
[1756741058768,6.64,199.17,199.14,0.03275634]
[1756741059166,6.64,199.18,199.14,0.03275634]
[1756741059365,11.15948557,199.18,199.14,0.03275634]
[1756741059766,6.64,199.17,199.14,0.03275634]
[1756741059966,6.64,199.16,199.14,0.03275634]
[1756741060162,126.84,199.17,199.14,0.03275634]
[1756741060364,133.46,199.17,199.14,0.03275634]
[1756741060560,126.82,199.17,199.14,0.03275634]
[1756741060770,126.82,199.19,199.14,0.03275634]
[1756741061173,6.64,199.18,199.14,0.03275634]
[1756741061970,126.82,199.19,199.14,0.03275634]
[1756741062360,6.64,199.18,199.14,0.03275634]
[1756741063974,4.51948557,199.17,199.06,7.77]
[1756741064176,6.61,199.16,199.06,7.77]
[1756741067076,0.032643,199.13,199.06,7.77]
[1756741070773,0.032643,199.13,199.07,7.77]
[1756741071576,0.032643,199.13,199.08,4.5201]
[1756741071777,0.032643,199.13,199.09,12.28948557]
[1756741072178,0.032643,199.13,199.09,4.51948557]
[1756741072372,0.032643,199.13,199.1,7.77]
[1756741072876,0.032643,199.13,199.08,4.51948557]
[1756741073082,0.032643,199.13,199.09,7.77]
[1756741073282,0.032643,199.13,199.08,4.51948557]
[1756741073584,0.032643,199.13,199.09,7.77]
[1756741073881,0.032643,199.13,199.08,4.51948557]
[1756741074081,0.032643,199.13,199.1,7.77]
[1756741074483,0.032643,199.13,199.09,2.82471651]
[1756741074682,0.032643,199.13,199.1,7.77]
[1756741075284,0.032643,199.13,199.08,2.82471651]
[1756741075687,0.032643,199.13,199.09,7.77]
[1756741076683,0.032643,199.13,199.08,2.82471651]
[1756741076887,0.032643,199.13,199.09,7.77]
[1756741077083,0.032643,199.13,199.08,2.82471651]
[1756741077480,0.032643,199.13,199.09,7.77]
[1756741077986,0.032643,199.13,199.08,2.82471651]
[1756741078186,0.032643,199.13,199.08,7.03524227]
[1756741079188,0.032643,199.13,199.09,7.77]
[1756741079485,0.032643,199.13,199.08,2.82471651]
[1756741079981,0.032643,199.13,199.09,7.77]
[1756741080587,0.032643,199.13,199.08,2.82471651]
[1756741080787,0.032643,199.13,199.09,7.77]
[1756741081181,0.032643,199.13,199.08,2.82471651]
[1756741081487,0.032643,199.13,199.09,7.77]
[1756741081686,0.032643,199.13,199.08,7.03524227]
[1756741082289,0.032643,199.13,199.12,7.77]
[1756741082483,0.032643,199.13,199.12,12.34415256]
[1756741082684,0.032643,199.13,199.12,15.16886907]
[1756741082889,0.032643,199.13,199.12,12.34415256]
[1756741086191,6.672643,199.13,199.12,4.57415256]
[1756741088093,0.032643,199.13,199.12,4.57415256]
[1756741088296,0.032643,199.13,199.12,4.58293992]
[1756741088496,6.652643,199.13,199.12,4.58293992]
[1756741088697,0.032643,199.13,199.12,4.58293992]
[1756741089201,0.032643,199.13,199.12,12.76293992]
[1756741095096,0.032643,199.13,199.12,14.60641087]
[1756741095292,0.032643,199.13,199.12,14.61171742]
[1756741095797,9.44471651,199.24,199.13,8.18]
[1756741095997,90.06,199.25,199.14,4.58824647]
[1756741095998,6.65,199.2,199.14,4.58824647]
[1756741096301,6.65,199.2,199.1,8.18]
[1756741096302,6.65,199.2,199.15,4.58824647]
[1756741096500,6.65,199.2,199.16,4.58824647]
[1756741096701,6.65,199.2,199.17,4.58824647]
[1756741096899,6.65,199.2,199.18,4.58824647]
[1756741097099,6.65,199.2,199.19,4.58824647]
[1756741097602,7.15,199.2,199.19,4.58824647]
[1756741098200,6.65,199.2,199.19,4.58824647]
[1756741098800,6.65,199.2,199.19,4.74653461]
[1756741099302,126.58,199.23,199.19,4.74653461]
[1756741099503,126.58,199.23,199.2,4.74653461]
[1756741099504,129.40471651,199.23,199.2,4.74653461]
[1756741099699,6.65,199.22,199.21,4.74653461]
[1756741102292,133.21,199.22,199.21,4.74653461]
[1756741107002,6.65,199.22,199.21,4.74653461]
[1756741107201,133.19,199.22,199.21,4.74653461]
[1756741107397,126.54,199.22,199.21,4.74653461]
[1756741107802,133.19,199.22,199.21,4.74653461]
[1756741109102,126.54,199.22,199.21,4.74653461]
[1756741109307,133.19,199.22,199.21,4.74600986]
[1756741111099,126.54,199.22,199.21,4.74600986]
[1756741111506,133.19,199.22,199.21,4.74600986]
[1756741113409,126.54,199.22,199.21,4.74600986]
[1756741114012,133.19,199.22,199.21,4.74600986]
[1756741114805,136.01471651,199.22,199.21,4.74600986]
[1756741115002,137.38864921,199.22,199.21,4.74600986]
[1756741115209,137.38864921,199.22,199.2,0.03176368]
[1756741116007,6.65,199.21,199.2,0.03176368]
[1756741120316,133.15,199.21,199.2,0.03176368]
[1756741122217,135.97471651,199.21,199.2,0.03176368]
[1756741123014,6.65,199.21,199.2,0.03176368]
[1756741123214,126.48,199.21,199.2,0.03176368]
[1756741125223,2.82471651,199.25,199.2,8.12176368]
[1756741125421,126.48,199.24,199.2,8.12176368]
[1756741125723,126.48,199.24,199.21,8.09]
[1756741126618,133.13,199.24,199.2,0.03176368]
[1756741126821,6.65,199.23,199.2,0.03176368]
[1756741127018,126.46,199.22,199.2,0.03176368]
[1756741127324,126.46,199.22,199.2,8.12176368]
[1756741127723,6.65,199.24,199.2,8.12176368]
[1756741127920,126.46,199.23,199.2,8.12176368]
[1756741128414,133.11,199.23,199.2,8.12176368]
[1756741129017,133.11,199.23,199.2,0.03176368]
[1756741130317,129.28471651,199.23,199.2,0.03176368]
[1756741130624,6.65,199.22,199.2,0.03176368]
[1756741130824,6.65,199.22,199.13,8.09]
[1756741131024,2.82471651,199.19,199.13,8.09]
[1756741131221,6.65,199.17,199.13,8.09]
[1756741132927,6.65,199.17,199.09,12.31544837]
[1756741133128,9.50648701,199.17,199.09,8.09]
[1756741135228,6.6817705,199.17,199.09,8.09]
[1756741135424,2.82471651,199.15,199.09,8.09]
[1756741135627,126.42,199.14,199.07,8.09]
[1756741135823,126.42,199.15,199.08,9.93370134]
[1756741136030,126.42,199.15,199.08,8.09]
[1756741137124,0.03179201,199.13,199.07,7.05016488]
[1756741137329,0.03179201,199.13,199.08,8.09]
[1756741137529,0.03179201,199.13,199.07,7.05016488]
[1756741139628,0.03179201,199.13,199.08,8.09]
[1756741139930,0.03179201,199.13,199.07,7.05016488]
[1756741140331,0.03179201,199.13,199.08,8.09]
[1756741141431,0.03179201,199.13,199.07,8.09]
[1756741149737,126.41179201,199.13,199.07,8.09]
[1756741150942,0.03179201,199.13,199.07,8.09]
[1756741152745,0.03179201,199.13,199.09,7.98]
[1756741153342,0.03179201,199.13,199.08,2.82471651]
[1756741154242,0.03179201,199.13,199.09,7.98]
[1756741154438,0.03179201,199.13,199.08,2.82471651]
[1756741154745,0.03179201,199.13,199.09,7.98]
[1756741155144,0.03179201,199.13,199.08,2.82471651]
[1756741155542,0.03179201,199.13,199.09,7.98]
[1756741155845,0.03179201,199.13,199.07,7.98]
[1756741159348,0.03179201,199.13,199.08,4.22544837]
[1756741159551,0.03179201,199.13,199.1,7.98]
[1756741159746,0.03179201,199.13,199.09,4.22544837]
[1756741160152,0.03179201,199.13,199.1,7.98]
[1756741160544,0.03179201,199.13,199.08,7.05016488]
[1756741160745,0.03179201,199.13,199.09,1.84143871]
[1756741160946,0.03179201,199.13,199.09,7.98]
[1756741161148,6.63,199.12,199.06,4.22544837]
[1756741161350,9.48650852,199.13,199.05,7.98]
[1756741161550,9.45471651,199.13,199.05,7.98]
[1756741161851,126.32,199.19,199.02,4.22544837]
[1756741161852,6.63,199.09,199.02,4.22544837]
[1756741162048,9.45471651,199.07,199.01,7.98]
[1756741162657,6.63,199.05,199.01,7.98]
[1756741163158,6.63,199.05,198.98,4.22544837]
[1756741163355,6.63,199.05,198.99,9.82147573]
[1756741163550,6.63,199.05,198.99,7.98]
[1756741164454,2.82471651,199.04,198.95,12.20544837]
[1756741164654,2.82471651,199.04,198.96,1.84035019]
[1756741164855,2.82471651,199.04,198.95,12.20544837]
[1756741165459,6.63,199.03,198.95,7.98]
[1756741166458,27.22471651,199.04,198.95,7.98]
[1756741166662,34.84,199.08,198.98,7.98]
[1756741167062,9.45471651,199.07,198.98,7.98]
[1756741168160,0.03209597,199.04,198.98,7.98]
[1756741170564,6.66209597,199.04,198.98,7.98]
[1756741174467,6.66209597,199.04,198.96,4.22544837]
[1756741174468,9.48681248,199.04,198.95,4.22544837]
[1756741174664,6.63,199.03,198.94,12.20544837]
[1756741174860,2.82471651,199.01,198.94,7.98]
[1756741175268,6.63,199.0,198.94,7.98]
[1756741177669,0.03227262,198.99,198.91,7.98]
[1756741177868,0.03227262,198.99,198.94,7.92]
[1756741178072,0.03227262,198.99,198.96,2.82471651]
[1756741178665,0.03227262,198.99,198.97,7.92]
[1756741179061,0.03227262,198.99,198.96,2.82471651]
[1756741179262,0.03227262,198.99,198.97,7.92]
[1756741179462,0.03227262,198.99,198.96,2.82471651]
[1756741179967,0.03227262,198.99,198.97,7.92]
[1756741180470,0.03227262,198.99,198.96,2.82471651]
[1756741180665,0.03227262,198.99,198.97,7.92]
[1756741180866,0.03227262,198.99,198.96,2.82471651]